bitfinex/quotes_SOLUSD_20241121
["timestamp","ask_amount","ask_price","bid_price","bid_amount"]
[1732223927827,7.73798228,253.97,253.92,21.2129]
[1732223928036,7.73798228,253.94,253.92,22.0005]
[1732223928924,7.73798228,253.96,253.92,23.9696]
[1732223929433,3.936,254.06,253.92,23.9696]
[1732223929615,7.73798228,253.99,253.92,23.9696]
[1732223931096,7.73798228,253.93,253.87,2.7572]
[1732223931423,7.73798228,253.88,253.87,2.7572]
[1732223932719,12.08331247,253.88,253.87,2.7572]
[1732223932922,12.08331247,253.88,253.87,1.9694]
[1732223933427,12.08331247,253.88,253.87,2.7572]
[1732223934341,23.776884,253.87,253.81,2.7578]
[1732223934524,12.08331247,253.83,253.81,2.7578]
[1732223934730,12.08331247,253.83,253.81,1.9699]
[1732223935323,12.08331247,253.83,253.81,2.7578]
[1732223936245,12.08331247,253.83,253.75,8.542]
[1732223936453,12.08331247,253.79,253.76,2.7584]
[1732223938330,12.08331247,253.77,253.76,2.7584]
[1732223938752,12.08331247,253.77,253.76,1.9703]
[1732223939132,12.08331247,253.77,253.72,1.9706]
[1732223939333,12.08331247,253.73,253.72,1.9706]
[1732223941347,12.08331247,253.77,253.72,1.9706]
[1732223942455,12.08331247,253.77,253.72,2.7588]
[1732223943649,12.08331247,253.77,253.72,1.9706]
[1732223944639,12.08331247,253.89,253.72,1.9706]
[1732223944640,12.08331247,253.81,253.72,1.9706]
[1732223944858,12.08331247,253.83,253.79,4.86453743]
[1732223945543,12.08331247,253.81,253.79,4.86453743]
[1732223945744,12.08331247,253.81,253.8,0.788]
[1732223945937,12.08331247,253.83,253.8,2.758]
[1732223946937,12.08331247,253.81,253.8,1.97]
[1732223948153,12.08331247,253.81,253.71,26.5286]
[1732223948360,12.08331247,253.75,253.71,26.5286]
[1732223948854,12.08331247,253.75,253.71,22.5871]
[1732223949155,12.08331247,253.72,253.65,21.0181]
[1732223949338,12.08331247,253.76,253.66,2.7594]
[1732223949339,23.776884,253.75,253.66,2.7594]
[1732223949537,23.776884,253.75,253.66,1.971]
[1732223949743,23.776884,253.73,253.61,1.9714]
[1732223949942,12.08331247,253.62,253.61,1.9714]
[1732223953036,0.13223451,253.62,253.61,1.9714]
[1732223957430,0.13223451,253.62,253.59,1.3801]
[1732223958431,35.86019647,253.6,253.59,1.3801]
[1732223961276,35.86019647,253.6,253.52,3.86836498]
[1732223961569,23.776884,253.59,253.54,0.986]
[1732223961749,23.776884,253.6,253.54,0.986]
[1732223962639,12.08331247,253.55,253.46,1.3808]
[1732223962944,23.776884,253.6,253.46,1.3808]
[1732223962945,12.08331247,253.49,253.46,1.3808]
[1732223963353,12.08331247,253.47,253.46,1.3808]
[1732223964043,12.08331247,253.47,253.46,0.9863]
[1732223965565,0.39123539,253.47,253.46,0.9863]
[1732223971273,12.08331247,253.49,253.46,0.9863]
[1732223972165,12.08331247,253.51,253.46,10.57982226]
[1732223972351,12.08331247,253.51,253.47,24.67392226]
[1732223973568,12.08331247,253.51,253.48,2.7615]
[1732223973945,12.08331247,253.53,253.48,2.7615]
[1732223974145,12.4409,253.67,253.49,8.3808]
[1732223974146,12.08331247,253.55,253.49,8.3808]
[1732223974447,12.08331247,253.57,253.51,3.87292226]
[1732223974642,12.08331247,253.57,253.49,8.3808]
[1732223974857,12.08331247,253.57,253.51,3.87970486]
[1732223975148,12.08331247,253.53,253.49,12.26044642]
[1732223975462,12.08331247,253.5,253.48,5.06314642]
[1732223975658,12.08331247,253.49,253.48,5.06568355]
[1732223976365,35.86019647,253.52,253.48,5.06568355]
[1732223977646,35.86019647,253.52,253.5,1.3805]
[1732223978677,12.08331247,253.54,253.5,5.26673085]
[1732223979976,12.08331247,253.54,253.5,1.3805]
[1732223980349,12.08331247,253.54,253.5,5.26673085]
[1732223980556,12.08331247,253.54,253.5,1.3805]
[1732223980953,12.08331247,253.57,253.5,7.23903085]
[1732223981173,23.776884,253.56,253.5,7.23903085]
[1732223982156,23.776884,253.56,253.5,6.8476392]
[1732223982557,23.776884,253.56,253.5,6.84820857]
[1732223982857,2.5,253.69,253.5,6.84820857]
[1732223982858,12.08331247,253.61,253.5,6.84820857]
[1732223983052,12.08331247,253.65,253.55,20.3614]
[1732223983258,12.08331247,253.67,253.56,3.88980857]
[1732223983454,12.1826,253.77,253.58,3.88980857]
[1732223983671,12.08331247,253.7,253.58,3.88980857]
[1732223983850,12.08331247,253.7,253.59,3.88980857]
[1732223984054,12.08331247,253.7,253.55,22.8614]
[1732223984055,12.08331247,253.68,253.6,3.88980857]
[1732223984281,12.08331247,253.68,253.61,1.38]
[1732223984869,12.4252,253.8,253.62,20.8366]
[1732223985077,12.08331247,253.73,253.63,3.88980857]
[1732223985376,12.08331247,253.73,253.64,3.88980857]
[1732223985670,12.08331247,253.73,253.62,20.8366]
[1732223985671,12.08331247,253.73,253.66,3.88844399]
[1732223986050,12.08331247,253.73,253.62,20.8366]
[1732223986250,12.08331247,253.73,253.63,1.3798]
[1732223987378,12.08331247,253.73,253.63,3.3511]
[1732223988277,12.08331247,253.73,253.65,0.9856]
[1732223993422,8.242,253.83,253.65,0.9856]
[1732223993423,12.08331247,253.7,253.65,0.9856]
[1732223994372,12.08331247,253.68,253.65,0.9856]
[1732223995178,35.86019647,253.72,253.65,0.9856]
[1732223996377,12.08331247,253.68,253.65,0.9856]
[1732223997078,12.08331247,253.66,253.65,0.9856]
[1732223998380,23.776884,253.65,253.62,21.2308]
[1732223998570,23.776884,253.65,253.62,0.3942]
[1732223999970,23.776884,253.63,253.61,0.9857]
[1732224000178,12.08331247,253.62,253.61,0.9857]
[1732224000687,23.776884,253.61,253.58,0.3943]
[1732224000992,23.776884,253.58,253.57,0.9859]
[1732224001183,12.08331247,253.59,253.57,0.9859]
[1732224001488,23.776884,253.58,253.52,0.986]
[1732224001664,12.08331247,253.53,253.52,0.986]
[1732224002489,12.08331247,253.53,253.46,6.17204795]
[1732224002490,23.776884,253.52,253.47,1.3807]
[1732224002794,12.08331247,253.48,253.47,0.9862]
[1732224002963,12.08331247,253.48,253.43,0.3945]
[1732224003168,12.08331247,253.44,253.43,0.3945]
[1732224003468,23.776884,253.43,253.39,0.3946]
[1732224003681,12.08331247,253.4,253.37,1.3812]
[1732224004076,12.08331247,253.38,253.37,1.3812]
[1732224004468,12.08331247,253.38,253.37,0.9866]
[1732224005287,23.776884,253.37,253.33,0.3947]
[1732224005590,12.08331247,253.34,253.32,0.9868]
[1732224005889,12.08331247,253.36,253.32,0.9868]
[1732224006085,12.08331247,253.4,253.32,0.9868]
[1732224006587,12.08331247,253.42,253.32,7.15884795]
[1732224006786,12.08331247,253.42,253.33,6.17204795]
[1732224007176,12.08331247,253.48,253.35,2.5]
[1732224007581,12.08331247,253.48,253.35,8.67204795]
[1732224007898,12.08331247,253.42,253.36,3.3547]
[1732224008063,12.08331247,253.4,253.36,3.3547]
[1732224011789,12.08331247,253.42,253.36,3.3547]
[1732224013396,12.08331247,253.42,253.38,7.55324795]
[1732224014098,12.08331247,253.4,253.38,1.3812]
[1732224014392,12.08331247,253.4,253.38,7.55324795]
[1732224015499,12.08331247,253.42,253.39,6.17204795]
[1732224015680,2.5,253.57,253.39,6.17204795]
[1732224015681,12.08331247,253.46,253.39,6.17204795]
[1732224015994,12.08331247,253.5,253.42,6.17658903]
[1732224016300,12.08331247,253.52,253.44,6.17658903]
[1732224016677,12.08331247,253.54,253.45,6.17658903]
[1732224016880,12.08331247,253.56,253.48,6.17658903]
[1732224017075,12.08331247,253.56,253.49,6.17658903]
[1732224017295,12.08331247,253.56,253.48,3.3532]
[1732224017598,12.08331247,253.63,253.55,4.90228519]
[1732224017981,23.776884,253.62,253.56,4.90228519]
[1732224018277,12.08331247,253.63,253.57,4.90228519]
[1732224018483,12.08331247,253.63,253.58,3.80114722]
[1732224018697,12.08331247,253.59,253.57,4.90228519]
[1732224018905,12.08331247,253.59,253.58,3.80111835]
[1732224019274,12.08331247,253.59,253.58,4.19541835]
[1732224020690,12.08331247,253.59,253.58,9.0848693]
[1732224021499,23.776884,253.68,253.58,10.0706693]
[1732224021694,12.08331247,253.6,253.59,8.6905693]
[1732224021874,12.08331247,253.6,253.59,3.80111835]
[1732224022499,12.08331247,253.6,253.58,3.80111835]
[1732224022800,23.776884,253.58,253.55,4.88945095]
[1732224022988,35.86019647,253.56,253.55,4.88945095]
[1732224023191,23.776884,253.55,253.51,4.88945095]
[1732224023513,35.86019647,253.52,253.51,0.3944]
[1732224023797,12.08331247,253.52,253.51,4.39743118]
[1732224024209,12.08331247,253.52,253.51,4.39743074]
[1732224024391,12.08331247,253.52,253.51,9.28556962]
[1732224025490,12.08331247,253.52,253.51,9.28752583]
[1732224025689,12.08331247,253.52,253.51,4.39743074]
[1732224027276,12.08331247,253.52,253.51,4.39951217]
[1732224028410,12.08331247,253.52,253.51,0.3944]
[1732224029606,12.08331247,253.52,253.5,0.9861]
[1732224031105,12.08331247,253.52,253.5,1.3805]
[1732224033500,12.08331247,253.54,253.5,9.52938903]
[1732224033816,12.08331247,253.56,253.5,9.52938903]
[1732224034112,23.776884,253.62,253.55,4.89351082]
[1732224034525,23.776884,253.62,253.56,0.3943]
[1732224034896,23.776884,253.62,253.56,6.2739648]
[1732224035191,23.776884,253.62,253.56,1.3802]
[1732224035606,12.08331247,253.57,253.56,1.3802]
[1732224035991,12.08331247,253.57,253.51,1.3805]
[1732224036190,12.08331247,253.55,253.51,1.3805]
[1732224037113,12.08331247,253.53,253.51,1.3805]
[1732224038292,12.08331247,253.53,253.51,0.9861]
[1732224039616,12.08331247,253.53,253.46,8.4373]
[1732224039617,23.776884,253.52,253.49,0.3944]
[1732224039792,12.08331247,253.5,253.49,0.3944]
[1732224040693,12.08331247,253.5,253.47,7.55738903]
[1732224040887,12.08331247,253.5,253.47,1.3808]
[1732224041133,22.6407,253.69,253.48,8.8812]
[1732224041293,12.08331247,253.56,253.5,6.17658903]
[1732224041495,12.08331247,253.54,253.5,6.17658903]
[1732224042015,12.08331247,253.54,253.47,3.3534]
[1732224042016,12.08331247,253.52,253.47,7.55738903]
[1732224042393,12.08331247,253.5,253.47,1.3808]
[1732224042593,12.08331247,253.5,253.47,7.55738903]
[1732224042803,12.08331247,253.5,253.47,9.52998903]
[1732224043013,12.08331247,253.5,253.48,6.17658903]
[1732224043796,12.08331247,253.5,253.49,0.3944]
[1732224044104,12.08331247,253.52,253.49,7.55718903]
[1732224044502,12.08331247,253.52,253.49,1.3806]
[1732224045130,12.08331247,253.5,253.49,1.3806]
[1732224046907,12.08331247,253.5,253.49,0.9862]
[1732224047294,35.86019647,253.5,253.49,4.90541461]
[1732224048099,35.86019647,253.5,253.47,0.3945]
[1732224048307,12.08331247,253.48,253.45,0.3945]
[1732224048505,12.08331247,253.46,253.45,0.3945]
[1732224049725,12.08331247,253.46,253.45,1.3808]
[1732224051525,35.86019647,253.49,253.45,1.3808]
[1732224051720,12.08331247,253.53,253.46,6.17658903]
[1732224051910,12.08331247,253.53,253.47,6.17658903]
[1732224052715,12.08331247,253.53,253.48,1.3807]
[1732224053514,12.08331247,253.51,253.48,1.3807]
[1732224055523,12.08331247,253.49,253.48,1.3807]
[1732224056740,35.86019647,253.49,253.46,6.57108903]
[1732224056919,12.08331247,253.47,253.46,0.3945]
[1732224057502,23.776884,253.46,253.44,6.17658903]
[1732224057809,12.08331247,253.45,253.43,1.3809]
[1732224058925,12.08331247,253.45,253.43,0.9864]
[1732224059718,35.86019647,253.45,253.44,4.87092662]
[1732224061429,35.86019647,253.45,253.44,4.87153177]
[1732224064030,12.08331247,253.47,253.45,1.3808]
[1732224064231,12.08331247,253.47,253.46,4.87153177]
[1732224065325,35.86019647,253.47,253.46,4.87153177]
[1732224066430,35.86019647,253.47,253.46,2.81853177]
[1732224066935,12.08331247,253.47,253.45,1.3808]
[1732224067115,12.08331247,253.54,253.46,16.5293]
[1732224067306,12.08331247,253.54,253.46,22.70588903]
[1732224067508,12.08331247,253.52,253.46,22.70588903]
[1732224067728,12.08331247,253.63,253.46,22.70588903]
[1732224067729,12.08331247,253.48,253.46,16.5293]
[1732224068048,12.08331247,253.48,253.46,22.70588903]
[1732224068211,12.08331247,253.5,253.46,22.70588903]
[1732224068723,12.08331247,253.5,253.47,1.3808]
[1732224070539,12.08331247,253.48,253.47,0.9863]
[1732224070833,35.86019647,253.48,253.47,0.9863]
[1732224071446,35.86019647,253.48,253.47,1.3808]
[1732224072737,35.86019647,253.48,253.42,1.3811]
[1732224072931,12.08331247,253.43,253.42,1.3811]
[1732224073515,12.08331247,253.43,253.42,7.55768903]
[1732224073716,12.08331247,253.47,253.42,9.53068903]
[1732224073917,12.08331247,253.47,253.43,6.17564139]
[1732224074318,12.08331247,253.49,253.44,6.17564139]
[1732224074537,12.08331247,253.49,253.45,6.17564139]
[1732224075822,12.08331247,253.51,253.46,2.7616]
[1732224076023,23.776884,253.59,253.47,6.17564139]
[1732224076024,12.08331247,253.53,253.47,6.17564139]
[1732224076215,12.08331247,253.51,253.48,6.17564139]
[1732224076437,12.08331247,253.49,253.48,6.17564139]
[1732224076816,12.08331247,253.51,253.47,12.35330296]
[1732224077024,12.08331247,253.51,253.49,6.1759202]
[1732224077222,23.776884,253.59,253.46,2.7616]
[1732224077223,12.08331247,253.5,253.48,6.1759202]
[1732224077424,2.5,253.58,253.46,8.9375202]
[1732224077425,35.86019647,253.49,253.46,8.9375202]
[1732224077632,12.08331247,253.47,253.46,8.9375202]
[1732224079969,23.776884,253.46,253.42,8.1489202]
[1732224080126,12.08331247,253.44,253.43,0.7891]
[1732224081147,12.08331247,253.44,253.42,1.973]
[1732224082739,23.776884,253.43,253.42,1.973]
[1732224083335,12.08331247,253.44,253.42,1.973]
[1732224086937,23.776884,253.43,253.39,6.1759202]
[1732224087149,23.776884,253.43,253.37,14.32660296]
[1732224087150,23.776884,253.39,253.37,1.9733]
[1732224087350,35.86019647,253.38,253.37,1.9733]
[1732224087535,47.94350894,253.38,253.37,1.9733]
[1732224087734,47.94350894,253.38,253.34,6.1759202]
[1732224087956,23.776884,253.34,253.3,6.1759202]
[1732224088159,12.08331247,253.31,253.28,6.9655202]
[1732224088352,12.08331247,253.29,253.28,6.9655202]
[1732224088740,12.08331247,253.29,253.28,0.7896]
[1732224089157,23.776884,253.28,253.24,0.7897]
[1732224089346,12.08331247,253.25,253.22,2.7643]
[1732224089559,12.08331247,253.23,253.22,2.7643]
[1732224089942,35.86019647,253.23,253.22,1.9745]
[1732224091048,23.776884,253.22,253.18,0.7899]
[1732224091365,12.08331247,253.19,253.18,0.7899]
[1732224091553,23.776884,253.18,253.17,1.9749]
[1732224091872,23.776884,253.18,253.14,0.79]
[1732224092041,23.776884,253.18,253.12,0.7901]
[1732224092241,12.08331247,253.13,253.12,0.7901]
[1732224093141,23.776884,253.12,253.11,1.9753]
[1732224093673,23.776884,253.12,253.08,0.7902]
[1732224093874,12.08331247,253.09,253.07,4.0302]
[1732224094160,12.08331247,253.09,253.07,6.0059]
[1732224096150,12.08331247,253.11,253.07,9.9573]
[1732224096361,12.08331247,253.13,253.08,3.89691228]
[1732224096564,12.08331247,253.13,253.09,3.89691228]
[1732224096870,2.5,253.36,253.1,2.5]
[1732224097072,12.08331247,253.23,253.12,2.7654]
[1732224097256,12.08331247,253.21,253.12,10.61291228]
[1732224097569,12.08331247,253.19,253.12,6.716]
[1732224097872,12.08331247,253.19,253.12,10.61291228]
[1732224098168,12.08331247,253.19,253.13,3.89691228]
[1732224098560,12.08331247,253.21,253.14,2.7651]
[1732224098760,12.08331247,253.21,253.14,6.7154]
[1732224100467,12.08331247,253.21,253.14,5.9254]
[1732224100884,12.08331247,253.21,253.14,9.82231228]
[1732224101166,12.08331247,253.25,253.15,3.89691228]
[1732224101375,12.08331247,253.25,253.16,3.89691228]
[1732224101550,12.08331247,253.25,253.17,3.89691228]
[1732224101746,12.08331247,253.23,253.18,3.89691228]
[1732224101952,12.08331247,253.23,253.19,3.89691228]
[1732224102163,12.08331247,253.23,253.2,2.7645]
[1732224102574,14.58331247,253.37,253.21,15.3018]
[1732224102575,12.08331247,253.25,253.21,15.3018]
[1732224102754,12.08331247,253.29,253.21,25.55565944]
[1732224102956,12.08331247,253.29,253.22,3.88465944]
[1732224103186,12.08331247,253.29,253.23,3.88465944]
[1732224103482,12.08331247,253.29,253.24,3.88465944]
[1732224103651,12.08331247,253.29,253.22,3.88465944]
[1732224103852,12.08331247,253.29,253.23,3.88465944]
[1732224104052,12.08331247,253.29,253.25,2.764]
[1732224104271,12.08331247,253.27,253.25,6.64865944]
[1732224104582,12.08331247,253.29,253.25,2.764]
[1732224104959,12.08331247,253.27,253.25,2.764]
[1732224105884,12.08331247,253.27,253.25,1.9743]
[1732224106256,12.08331247,253.29,253.25,1.9743]
[1732224106577,12.08331247,253.27,253.25,5.85859049]
[1732224106873,12.08331247,253.27,253.26,3.88429049]
[1732224107076,12.08331247,253.27,253.25,1.9743]
[1732224107372,12.08331247,253.27,253.25,5.85859049]
[1732224107671,12.08331247,253.27,253.25,2.764]
[1732224109062,12.08331247,253.27,253.25,6.64829049]
[1732224109379,12.08331247,253.27,253.26,3.88429049]
[1732224109874,12.08331247,253.27,253.26,7.75870353]
[1732224110183,12.08331247,253.27,253.26,3.88429049]
[1732224110870,12.08331247,253.29,253.27,2.7637]
[1732224111657,4.7711,253.46,253.27,6.712]
[1732224111864,12.08331247,253.35,253.31,3.87400695]
[1732224112063,12.08331247,253.35,253.32,7.75829744]
[1732224112261,12.08331247,253.35,253.33,3.88429049]
[1732224112485,12.08331247,253.35,253.27,6.712]
[1732224112675,12.08331247,253.33,253.28,3.88523195]
[1732224112864,12.08331247,253.33,253.27,2.7637]
[1732224113070,12.08331247,253.29,253.27,2.7637]
[1732224113575,12.08331247,253.29,253.26,3.9485]
[1732224113774,12.08331247,253.27,253.26,3.9485]
[1732224114586,12.08331247,253.27,253.22,2.7643]
[1732224114783,19.43110545,253.27,253.22,2.7643]
[1732224115380,23.776884,253.36,253.22,2.7643]
[1732224115580,19.43110545,253.23,253.22,2.7643]
[1732224121671,19.43110545,253.23,253.15,22.1046]
[1732224121891,19.43110545,253.17,253.16,2.765]
[1732224124493,43.20798945,253.17,253.12,1.9753]
[1732224124792,19.43110545,253.13,253.12,1.9753]
[1732224127883,19.43110545,253.15,253.12,1.9753]
[1732224128595,19.43110545,253.13,253.12,1.9753]
[1732224129188,19.43110545,253.13,253.06,3.9516]
[1732224129388,19.43110545,253.07,253.06,4.7419]
[1732224129606,3.9497,253.18,253.06,6.7177]
[1732224129905,19.43110545,253.07,253.06,2.7661]
[1732224130495,43.20798945,253.07,253.06,1.9758]
[1732224130800,19.43110545,253.07,253.06,2.7661]
[1732224131589,19.43110545,253.07,253.06,1.9758]
[1732224132806,9.8719,253.25,253.06,1.9758]
[1732224132807,19.43110545,253.09,253.06,1.9758]
[1732224133388,19.43110545,253.07,253.06,1.9758]
[1732224134699,12.15918164,253.07,253.06,1.9758]
[1732224136879,12.15918164,253.09,253.06,1.9758]
[1732224137085,12.15918164,253.11,253.06,1.9758]
[1732224137302,12.15918164,253.13,253.06,1.9758]
[1732224138389,12.15918164,253.11,253.06,1.9758]
[1732224138696,12.15918164,253.13,253.06,1.9758]
[1732224140036,12.15918164,253.15,253.06,1.9758]
[1732224140505,160.6,253.39,253.11,21.5148]
[1732224140701,12.15918164,253.32,253.23,21.5148]
[1732224141203,12.15918164,253.28,253.23,21.5148]
[1732224141609,12.15918164,253.28,253.24,2.7641]
[1732224141811,12.15918164,253.31,253.24,2.7641]
[1732224141993,12.15918164,253.29,253.24,2.7641]
[1732224142602,19.42492402,253.29,253.24,2.7641]
[1732224143008,19.42492402,253.37,253.24,2.7641]
[1732224143009,19.42492402,253.31,253.24,2.7641]
[1732224144388,23.776884,253.3,253.24,2.7641]
[1732224144820,19.42492402,253.29,253.24,2.7641]
[1732224144998,19.42492402,253.35,253.24,6.7129]
[1732224146313,23.776884,253.34,253.24,6.7129]
[1732224147002,23.776884,253.36,253.24,6.7129]
[1732224147996,19.42492402,253.39,253.24,6.7129]
[1732224148202,19.42492402,253.39,253.24,10.6617]
[1732224151001,2.5,253.51,253.25,2.5]
[1732224151002,19.42492402,253.43,253.25,2.5]
[1732224151201,18.0143,253.51,253.28,2.5]
[1732224151202,19.42492402,253.45,253.28,2.5]
[1732224151496,19.42492402,253.49,253.3,5.0]
[1732224151694,19.42492402,253.49,253.31,6.5165]
[1732224151910,19.42492402,253.51,253.33,16.4145]
[1732224152088,19.42492402,253.49,253.33,16.4145]
[1732224152619,19.42492402,253.49,253.34,10.6574]
[1732224153494,19.42492402,253.49,253.34,13.1574]
[1732224153901,19.42492402,253.49,253.34,10.6574]
[1732224154103,19.42492402,253.49,253.35,6.3891]
[1732224154794,19.42492402,253.53,253.35,11.3891]
[1732224155295,15.4455,253.65,253.42,2.5]
[1732224155296,19.42492402,253.57,253.42,2.5]
[1732224155604,19.42492402,253.59,253.41,6.7083]
[1732224155807,19.42492402,253.59,253.41,13.1544]
[1732224156020,19.42492402,253.55,253.41,10.6544]
[1732224156197,19.42492402,253.53,253.41,10.6544]
[1732224156806,19.42492402,253.55,253.41,10.6544]
[1732224157415,23.776884,253.54,253.41,10.6544]
[1732224157720,23.776884,253.5,253.41,6.7083]
[1732224157905,19.42492402,253.49,253.41,6.7083]
[1732224158217,23.776884,253.48,253.41,6.7083]
[1732224159207,23.776884,253.5,253.41,6.7083]
[1732224159601,19.42492402,253.49,253.41,6.7083]
[1732224159804,19.42492402,253.51,253.41,6.7083]
[1732224160221,19.42492402,253.49,253.41,6.7083]
[1732224160618,23.776884,253.48,253.41,6.7083]
[1732224162214,23.776884,253.5,253.41,6.7083]
[1732224164826,19.42492402,253.55,253.41,6.7083]
[1732224164999,3.9429,253.62,253.41,2.7622]
[1732224165000,19.42492402,253.51,253.41,2.7622]
[1732224165708,19.42492402,253.49,253.41,2.7622]
[1732224166022,23.776884,253.48,253.41,2.7622]
[1732224168605,35.89755273,253.5,253.41,2.7622]
[1732224169004,3.943,253.61,253.41,6.7083]
[1732224169215,12.12066873,253.57,253.41,6.7083]
[1732224170624,3.9431,253.61,253.41,10.6544]
[1732224170625,12.12066873,253.59,253.41,10.6544]
[1732224171207,3.9431,253.61,253.41,10.6544]
[1732224171208,12.12066873,253.56,253.41,10.6544]
[1732224171699,12.12066873,253.54,253.41,10.6544]
[1732224171896,2.5,253.67,253.43,6.5442]
[1732224172098,12.12066873,253.59,253.43,6.5442]
[1732224172719,12.12066873,253.59,253.44,3.86069166]
[1732224172899,12.12066873,253.59,253.46,6.7069]
[1732224173506,12.12066873,253.59,253.46,10.56759166]
[1732224173703,12.12066873,253.65,253.47,24.6152]
[1732224174019,12.12066873,253.65,253.49,3.86069166]
[1732224174198,12.12066873,253.63,253.49,3.86069166]
[1732224174522,12.12066873,253.59,253.49,3.86069166]
[1732224174713,19.38048818,253.58,253.48,3.86069166]
[1732224174901,19.38048818,253.58,253.47,22.1152]
[1732224175103,19.38048818,253.58,253.48,6.7065]
[1732224176116,19.38048818,253.6,253.48,6.7065]
[1732224180634,19.38048818,253.54,253.48,6.7065]
[1732224181133,19.38048818,253.56,253.48,6.7065]
[1732224186422,19.38048818,253.58,253.48,6.7065]
[1732224188417,19.38048818,253.6,253.48,6.7065]
[1732224188932,23.776884,253.61,253.48,6.7065]
[1732224189116,19.38048818,253.6,253.48,6.7065]
[1732224191018,19.38048818,253.56,253.48,6.7065]
[1732224191869,19.38048818,253.58,253.48,6.7065]
[1732224192333,19.38048818,253.56,253.48,6.7065]
[1732224194838,19.38048818,253.54,253.48,2.7615]
[1732224196733,12.11736901,253.53,253.48,2.7615]
[1732224197334,12.11736901,253.49,253.44,1.9728]
[1732224197532,12.11736901,253.45,253.44,2.7619]
[1732224198031,12.11736901,253.45,253.44,1.9728]
[1732224198218,12.11736901,253.45,253.41,21.9188]
[1732224198427,12.11736901,253.42,253.41,6.9198]
[1732224198820,12.11736901,253.44,253.41,8.8928]
[1732224201348,12.12611832,253.44,253.41,8.8928]
[1732224202033,12.12611832,253.46,253.41,12.8389]
[1732224202240,12.12611832,253.5,253.42,12.12611832]
[1732224202560,12.12611832,253.48,253.41,12.8389]
[1732224203427,12.12611832,253.5,253.42,12.12611832]
[1732224203627,12.12611832,253.5,253.43,2.762]
[1732224206048,12.12611832,253.52,253.43,2.762]
[1732224209141,12.12611832,253.52,253.43,6.7078]
[1732224209453,12.12611832,253.52,253.44,28.68941832]
[1732224210436,12.12611832,253.52,253.45,2.7618]
[1732224213251,12.12611832,253.46,253.45,2.7618]
[1732224213463,23.776884,253.59,253.45,14.88791832]
[1732224213767,15.9188,253.67,253.45,14.88791832]
[1732224213768,12.12611832,253.55,253.45,14.88791832]
[1732224214145,12.12611832,253.51,253.45,2.7618]
[1732224214557,12.12611832,253.51,253.49,4.89999839]
[1732224214764,12.12611832,253.51,253.49,5.68889839]
[1732224215092,12.12611832,253.51,253.49,0.7889]
[1732224216454,12.12611832,253.53,253.5,10.70406923]
[1732224216652,12.12611832,253.53,253.51,5.01517084]
[1732224216850,12.12611832,253.55,253.52,5.01517084]
[1732224217065,12.12611832,253.55,253.53,5.01517084]
[1732224217270,12.12611832,253.55,253.54,5.01503916]
[1732224217656,12.12611832,253.55,253.54,5.01396952]
[1732224222660,7.75414555,253.55,253.54,5.01396952]
[1732224223671,3.9425,253.65,253.55,2.7606]
[1732224223877,7.75414555,253.61,253.57,4.90034802]
[1732224224074,2.5,253.74,253.56,5.01396952]
[1732224224075,3.9415,253.71,253.58,9.91431754]
[1732224224381,7.75414555,253.61,253.59,5.01396952]
[1732224224569,7.75414555,253.61,253.56,16.4957]
[1732224224886,7.75414555,253.61,253.57,2.7605]
[1732224226757,12.10932325,253.61,253.57,2.7605]
[1732224227589,3.941,253.74,253.58,12.10932325]
[1732224227756,12.10932325,253.67,253.58,18.28524345]
[1732224227964,12.10932325,253.69,253.63,6.1759202]
[1732224228372,12.10932325,253.71,253.64,6.1759202]
[1732224228561,12.10932325,253.71,253.65,6.1759202]
[1732224228762,12.10932325,253.71,253.65,2.7596]
[1732224229256,12.10932325,253.69,253.65,2.7596]
[1732224230474,12.10932325,253.69,253.65,1.9712]
[1732224232880,12.10932325,253.69,253.66,4.19816309]
[1732224233081,12.10932325,253.69,253.67,4.19816309]
[1732224233373,12.10932325,253.69,253.68,4.19816309]
[1732224234156,12.10932325,253.69,253.67,0.7884]
[1732224234979,12.10932325,253.69,253.65,1.9712]
[1732224240789,3.9406,253.77,253.65,1.9712]
[1732224240984,12.10932325,253.7,253.65,1.9712]
[1732224241685,12.10932325,253.68,253.65,1.9712]
[1732224242960,12.10932325,253.66,253.65,1.9712]
[1732224244067,12.10932325,253.66,253.64,4.6819528]
[1732224244068,12.10932325,253.66,253.62,0.7885]
[1732224244291,12.10932325,253.63,253.62,0.7885]
[1732224244486,12.10932325,253.63,253.6,3.88944777]